[Event "5th Baskent University Open 2022"]
[Site "Ankara"]
[Date "2022.07.06"]
[Round "7.13"]
[White "Yildirim, Ibrahim Halil"]
[Black "Khoder, Akram"]
[Result "1/2-1/2"]
[ECO "B31"]
[WhiteElo "2106"]
[BlackElo "2038"]
[Annotator "TA"]
[PlyCount "73"]
[EventDate "2022.07.02"]
[EventType "swiss"]
[EventCountry "TUR"]
[SourceTitle "playchess.com"]
[Source "ChessBase"]
[SourceQuality "1"]
[TimeControl "5400+30"]

{[%evp 16,73,21,24,24,10,83,87,113,63,68,0,13,3,32,0,0,-4,0,0,0,0,15,0,0,-8,-14,-6,11,0,32,0,20,20,31,0,0,0,22,-15,-14,-16,-13,-19,0,-47,-2,-64,-45,-45,-33,-36,-10,-67,-51,-45,-35,-54,0,-41]} 1. e4 {[%emt 0:01:00]} c5 {[%emt 0:01:00]} 2. Nf3 {[%emt 0:00:30]} Nc6 {[%emt 0:01:30]} 3. Bb5 {[%emt 0:00:30]} g6 {[%emt 0:00:30]} 4. O-O {[%emt 0:00:30]} Bg7 {[%emt 0:00:30]} 5. c3 {[%emt 0:00:00]} e5 {[%emt 0:00:00]} 6. d4 {[%emt 0:00:00]} cxd4 {[%emt 0:00:00]} 7. cxd4 {[%emt 0:00:30]} exd4 {[%emt 0:00:00]} 8. Bf4 {[%emt 0:00:00]} Nge7 {[%emt 0:00:00][%cal Bg8e7,Be7c6,Bc6b4][%mdl 32]} 9. Bd6 {[%emt 0:06:00][%mdl 1024] White has compensation.} a6 {[%emt 0:00:30] B31: Sicilian: 2...Nc6 3 Bb5 g6.} 10. Bd3 {[%emt 0:00:30]} b5 {[%emt 0:12:30] [#]} (10... b6 $11 {keeps the balance.}) 11. a4 $146 {[%emt 0:06:30]} ({Predecessor:} 11. Nbd2 Bb7 12. e5 O-O 13. Ne4 Re8 14. Nc5 Ra7 15. a4 bxa4 16. Ng5 Nf5 17. Bxf5 Qxg5 {1-0 (32) Pruijssers,R (2557)-Podlesnik,B (2342) Budva 2019}) 11... b4 {[%emt 0:06:30] White is better.} 12. a5 {[%emt 0:04:30]} (12. Nbd2 $16) 12... Nxa5 $14 {[%emt 0:06:30]} 13. Bxb4 {[%emt 0:03:30] White is much more active. The black rooks are badly placed.} (13. Qc1 $14 Nb3 14. Bc7 Nxc1 15. Rxc1) 13... Nec6 $11 {[%emt 0:16:30]} 14. Ba3 {[%emt 0:05:30]} Rb8 {[%emt 0:05:30]} 15. Nbd2 {[%emt 0:01:30]} Nb4 {[%emt 0:19:30]} 16. Nc4 {[%emt 0:09:30]} Nxc4 {[%emt 0:00:30]} 17. Bxc4 {[%emt 0:00:30]} O-O {[%emt 0:01:30]} 18. Nxd4 {[%emt 0:06:30]} Qb6 {[%emt 0:00:30]} 19. Nf3 {[%emt 0:06:30]} a5 {[%emt 0:01:30]} 20. e5 {[%emt 0:06:30]} Bb7 {[%emt 0:01:30]} 21. Re1 {[%emt 0:02:30]} Rbe8 {[%emt 0:09:12]} 22. Bxb4 {[%emt 0:17:30]} Qxb4 {[%emt 0:09:02]} 23. Bd5 {[%emt 0:02:05]} (23. Qxd7 {feels hotter.} Re7 24. Qd4 Bxf3 25. gxf3 Rxe5 26. Rxe5 Bxe5 27. Qxe5 Qxc4 28. Rxa5 Qe6 29. b4) 23... Bc6 {[%emt 0:02:30]} 24. Bxc6 {[%emt 0:04:24]} dxc6 {[%emt 0:00:04]} 25. Qa4 {[%emt 0:01:55]} Qxb2 {[%emt 0:01:21]} 26. Qxa5 {[%emt 0:00:18]} Qb5 {[%emt 0:00:26]} 27. Qxb5 {[%emt 0:02:37]} cxb5 {[%emt 0:00:04]} 28. Rab1 {[%emt 0:00:19]} Rb8 {[%emt 0:00:45]} 29. Nd4 {[%emt 0:00:23]} Rfc8 {[%emt 0:00:07]} 30. f4 {[%emt 0:03:59]} (30. Nxb5 $11 Rc5 31. e6 fxe6 32. Nd6 Rxb1 33. Rxb1) 30... Rc4 {[%emt 0:00:51]} (30... b4 $5 {[%cal Rc8c4]}) 31. Ne2 {[%emt 0:02:28]} (31. Rxb5 $11 Rxb5 32. Nxb5) 31... b4 {[%emt 0:00:30]} 32. Rb3 {[%emt 0:00:30]} Bf8 {[%emt 0:00:30]} 33. Kf2 {[%emt 0:00:30]} Ra8 {[%emt 0:00:30]} 34. Reb1 {[%emt 0:00:30]} ({Better is} 34. Rc1 $1 $11 Rxc1 35. Nxc1) 34... Ra2 {[%emt 0:00:30] [#] Hoping for ...Rxf4+.} 35. R1b2 {[%emt 0:00:30]} Ra1 {[%emt 0:00:15]} 36. Rb1 {[%emt 0:02:09]} Ra2 {[%emt 0:00:07] White must now prevent ...Rxf4+.} 37. R1b2 {[%emt 0:00:28] Weighted Error Value: White=0.21 (precise) /Black=0.17 (very precise)} 1/2-1/2

[Event "5th Baskent University Open 2022"]
[Site "Ankara"]
[Date "2022.07.06"]
[Round "7.14"]
[White "Ipek, Egehan"]
[Black "Bicer, Atakan Mert"]
[Result "0-1"]
[ECO "D11"]
[WhiteElo "2196"]
[BlackElo "2368"]
[Annotator "TA"]
[PlyCount "164"]
[EventDate "2022.07.02"]
[EventType "swiss"]
[EventCountry "TUR"]
[SourceTitle "playchess.com"]
[Source "ChessBase"]
[SourceQuality "1"]
[TimeControl "5400+30"]

{[%evp 11,164,9,10,0,16,16,13,7,11,12,15,0,10,18,37,40,72,62,73,68,67,66,68,68,101,96,116,116,116,116,123,116,123,116,116,116,116,116,109,109,116,116,119,116,143,143,235,235,235,230,219,212,235,210,233,208,208,208,208,208,208,208,208,208,208,177,177,177,177,177,177,177,177,177,177,171,171,171,171,171,171,171,171,0,171,171,171,171,171,171,171,171,171,171,171,171,171,171,171,0,171,0,171,-82,-89,-85,-63,-62,-81,-154,-235,-224,-94,-216,0,0,0,-83,-83,-73,-66,-97,-7,-261,-266,-260,-260,-259,-259,-259,-259,-259,-255,-379,0,0,0,-372,-343,-346,-287,-312,-302,-460,-454,-468,-468,-1942,-1681,-1708,-1508,-2707,-1910,-2417,-2252]} 1. Nf3 {[%emt 0:01:00]} Nf6 {[%emt 0:04:00]} 2. c4 {[%emt 0:00:30]} c6 {[%emt 0:00:00]} 3. e3 {[%emt 0:00:30]} d5 {[%emt 0:00:00]} 4. d4 {[%emt 0:00:00]} Bg4 {[%emt 0:01:30]} 5. Qb3 {[%emt 0:00:00]} Qb6 {[%emt 0:00:00]} 6. Nc3 {[%emt 0:00:00]} e6 {[%emt 0:01:00]} 7. Nh4 {[%emt 0:00:00] D11: Slav Defence: 3 Nf3 sidelines and 3...Nf6 4 e3 Bg4.} Be7 {[%emt 0:02:30]} 8. h3 {[%emt 0:00:30]} Bh5 {[%emt 0:00:30]} 9. g4 {[%emt 0:00:00] The position is equal.} Bg6 {[%emt 0:00:00]} 10. Nxg6 {[%emt 0:00:00]} hxg6 {[%emt 0:00:00]} 11. Bg2 {[%emt 0:00:30]} Nbd7 {[%emt 0:02:30]} 12. g5 {[%emt 0:10:30]} Nh5 {[%emt 0:05:30]} 13. h4 {[%emt 0:00:30]} O-O-O {[%emt 0:16:30]} 14. Bd2 {[%emt 0:23:30]} Kb8 {[%emt 0:01:30]} 15. O-O-O {[%emt 0:06:30]} Qxb3 {[%emt 0:09:30]} 16. axb3 {[%emt 0:00:30] [#]} Nb6 $146 {[%emt 0:00:00]} ({Predecessor:} 16... Bd6 17. Bh3 Bc7 18. Rhg1 Nb6 19. c5 Nc8 {½-½ (19) Pataki,G (2365)-Csonka,B (2232) Zalakaros 2011}) 17. c5 {[%emt 0:08:30]} Nd7 {[%emt 0:00:00]} 18. b4 {[%emt 0:00:30]} a6 {[%emt 0:09:30]} 19. e4 {[%emt 0:11:30]} dxe4 {[%emt 0:03:30]} 20. Bxe4 {[%emt 0:01:30]} Nf8 {[%emt 0:03:30]} 21. Ne2 {[%emt 0:11:30]} Rd7 {[%emt 0:04:30]} 22. Be3 {[%emt 0:02:30]} Bd8 {[%emt 0:01:30]} 23. Rh3 {[%emt 0:06:32]} Bc7 {[%emt 0:00:30]} 24. f4 {[%emt 0:00:22] Inhibits e5.} Kc8 {[%emt 0:01:30]} 25. Kc2 {[%emt 0:00:32]} Kd8 {[%emt 0:00:30]} 26. Rf1 {[%emt 0:01:11]} Ke7 {[%emt 0:01:30]} 27. Nc1 {[%emt 0:00:48]} f5 {[%emt 0:12:30]} 28. Bd3 {[%emt 0:02:23]} e5 {[%emt 0:10:34]} (28... Nh7 $16 {might work better.} 29. Bc4 Rc8) 29. dxe5 $18 {[%emt 0:02:25]} (29. fxe5 $6 Ne6 $16) 29... Ne6 {[%emt 0:00:04]} 30. Ne2 {[%emt 0:01:35]} Rhd8 {[%emt 0:00:05]} 31. Bc4 {[%emt 0:01:53]} Nd4+ {[%emt 0:02:21]} 32. Kc3 {[%emt 0:01:53][%cal Bc2c3,Bc3d3,Bd3e3][%mdl 32]} (32. Bxd4 $6 Rxd4 33. Rc3 (33. Nxd4 Rxd4 34. Kc3 Re4 $16) 33... Re4 $16) 32... Nb5+ {[%emt 0:01:21]} 33. Bxb5 {[%emt 0:01:19]} axb5 {[%emt 0:00:30]} 34. Bd4 {[%emt 0:00:30]} Ra8 {[%emt 0:00:30]} 35. Rhh1 {[%emt 0:00:30]} Rdd8 {[%emt 0:00:45]} 36. Ra1 {[%emt 0:02:32]} Ke6 {[%emt 0:00:05]} 37. Kd3 {[%emt 0:00:47]} Kd5 {[%emt 0:02:20]} 38. b3 {[%emt 0:00:24]} Rxa1 {[%emt 0:01:28]} 39. Rxa1 {[%emt 0:00:30] Ra7 is the strong threat.} Bb8 {[%emt 0:00:30] Prevents Ra7.} 40. Ke3 {[%emt 0:00:30]} Ke6 {[%emt 0:00:00]} 41. Bc3 {[%emt 0:01:28]} Ke7 {[%emt 0:00:22]} 42. Ra8 {[%emt 0:00:36]} Ke6 {[%emt 0:02:15]} 43. Be1 {[%emt 0:00:41]} Ke7 {[%emt 0:01:04]} 44. Bf2 {[%emt 0:01:10]} Rf8 {[%emt 0:00:29]} 45. Ra2 {[%emt 0:00:36]} Rd8 {[%emt 0:00:30]} 46. Nd4 {[%emt 0:00:10]} Rc8 {[%emt 0:01:10]} 47. Ne2 {[%emt 0:00:55]} Rd8 {[%emt 0:00:05]} 48. Rd2 {[%emt 0:00:51]} Rh8 {[%emt 0:00:32]} 49. Nd4 {[%emt 0:00:23]} Bc7 {[%emt 0:00:25]} 50. Ra2 {[%emt 0:01:05] Strongly threatening Ra7.} Bb8 {[%emt 0:00:30] Inhibits Ra7.} 51. Nf3 {[%emt 0:00:00]} Rd8 {[%emt 0:01:24]} 52. Rd2 {[%emt 0:00:06]} Rh8 {[%emt 0:00:00]} 53. Be1 {[%emt 0:00:54]} Bc7 {[%emt 0:00:27]} 54. Ra2 {[%emt 0:00:45] And now Ra7 would win.} Bb8 {[%emt 0:00:00] Prevents Ra7.} 55. Bf2 {[%emt 0:00:13]} Rd8 {[%emt 0:00:22]} 56. Nd4 {[%emt 0:00:37]} (56. Ra3 $18) 56... Rd5 $2 {[%emt 0:01:35]} (56... Rh8 $11 {and Black stays safe.}) 57. Kf3 $2 {[%emt 0:00:25] [#]} ({White should play} 57. Ra8 $18 Rd8 58. Ne2) 57... Nxf4 $1 $17 {[%emt 0:01:33][%mdl 64] Remove Defender, Decoy} 58. Kxf4 {[%emt 0:00:37]} Bxe5+ {[%emt 0:00:30]} 59. Kf3 {[%emt 0:00:30]} Bxd4 $15 {[%emt 0:00:00][%mdl 4096] Endgame KRB-KRB} 60. Bg3 {[%emt 0:00:30]} (60. Bxd4 $142 Rxd4 61. Ra7) 60... Bc3 $17 {[%emt 0:01:17]} 61. Bd6+ {[%emt 0:00:30]} Kf7 {[%emt 0:00:30]} (61... Kd7 $19 {is more deadly. White must now prevent ...Rd4.} 62. Ra7 Ke6 63. Rxb7 Rd3+ 64. Ke2 Rd2+ 65. Ke3 Rb2) 62. Ra7 {[%emt 0:00:45]} (62. Ra8 $17 {was the only defense.}) 62... Bxb4 $2 {[%emt 0:00:51]} ({And not} 62... Rd3+ 63. Ke2 Rd2+ 64. Ke3 $17) (62... Ke6 $19 {aiming for ...Rd4.} 63. Rxb7 Rd3+ 64. Ke2 Rd2+ 65. Ke3 Rb2) 63. Rxb7+ $11 {[%emt 0:00:30]} Kg8 {[%emt 0:00:30]} 64. Kf4 {[%emt 0:00:28]} (64. h5 $11 Kh7 65. h6) 64... Rd4+ $17 {[%emt 0:00:13]} ({But not} 64... Bxc5 $6 65. Bxc5 Rxc5 66. h5 $11) 65. Kf3 {[%emt 0:00:36][%cal Oh4h5] Threatens to win with h5!} Rxh4 {[%emt 0:01:16]} 66. Be5 {[%emt 0:00:19]} Re4 {[%emt 0:00:17]} ({Don't play} 66... Bxc5 $6 67. Rxg7+ Kf8 68. Rxg6 $11) (66... Rh3+ $17 67. Kg2 Rh7) 67. Bxg7 $2 {[%emt 0:00:31][%mdl 8192]} (67. Bb2 $11 {and White is okay.}) 67... Bxc5 $19 {[%emt 0:00:25]} 68. Bf6 {[%emt 0:00:33]} Bf8 {[%emt 0:00:16] Inhibits Rg7+.} 69. Rb6 {[%emt 0:00:34]} Re6 {[%emt 0:00:24]} 70. Rb8 {[%emt 0:00:25]} b4 {[%emt 0:00:45]} 71. Bd4 {[%emt 0:00:35] Hoping for Bc5.} Kf7 {[%emt 0:00:21]} 72. Rb7+ {[%emt 0:00:14]} (72. Bf2 $142) 72... Ke8 {[%emt 0:00:49]} 73. Rb8+ {[%emt 0:00:49]} Kf7 {[%emt 0:00:05]} 74. Rb7+ $1 {[%emt 0:00:07]} Re7 {[%emt 0:00:05]} 75. Rb6 {[%emt 0:00:50]} Rc7 {[%emt 0:00:39]} 76. Be5 {[%emt 0:00:58] [#]} Rc8 $1 {[%emt 0:00:05]} 77. Kf4 {[%emt 0:00:18]} (77. Bf4 {was worth a try.}) 77... Ke6 {[%emt 0:00:09] Black is clearly winning.} 78. Rb7 {[%emt 0:00:05]} Be7 {[%emt 0:01:10][%cal Oe7g5]} 79. Ra7 {[%emt 0:00:40] [#]} (79. Bf6 $142 Bxf6 80. gxf6 Kxf6 81. Rxb4) 79... Bxg5+ $1 {[%emt 0:01:04][%mdl 512]} 80. Kxg5 {[%emt 0:00:30]} (80. Kf3 Kxe5) 80... Kxe5 {[%emt 0:00:00]} 81. Kxg6 {[%emt 0:00:07]} f4 {[%emt 0:00:00]} 82. Rf7 {[%emt 0:00:25]} Rg8+ {[%emt 0:00:17] What a fight!  Weighted Error Value: White=0.23 (precise) /Black=0.11 (very precise)} 0-1

[Event "5th Baskent University Open 2022"]
[Site "Ankara"]
[Date "2022.07.06"]
[Round "7.15"]
[White "Unver, Cumali"]
[Black "Ozkan, Taha"]
[Result "1/2-1/2"]
[ECO "E01"]
[WhiteElo "2046"]
[BlackElo "2357"]
[Annotator "TA"]
[PlyCount "90"]
[EventDate "2022.07.02"]
[EventType "swiss"]
[EventCountry "TUR"]
[SourceTitle "playchess.com"]
[Source "ChessBase"]
[SourceQuality "1"]
[TimeControl "5400+30"]

{[%evp 23,90,35,35,27,22,26,47,27,36,25,29,1,57,45,90,50,75,46,68,45,45,45,47,47,47,53,85,37,60,61,59,47,50,31,50,38,44,47,47,46,79,81,73,90,85,85,85,46,46,45,42,26,41,41,37,36,44,0,0,0,0,0,0,0,0,0,0,0,0]} 1. d4 {[%emt 0:04:00]} d5 {[%emt 0:03:00]} 2. c4 {[%emt 0:00:30]} c6 {[%emt 0:00:30]} 3. Nf3 {[%emt 0:00:30]} e6 {[%emt 0:00:30]} 4. Nbd2 {[%emt 0:03:30]} Nf6 {[%emt 0:02:30]} 5. g3 {[%emt 0:02:30]} Nbd7 {[%emt 0:00:30]} 6. Bg2 {[%emt 0:00:30]} Bd6 {[%emt 0:00:30]} 7. O-O {[%emt 0:00:30]} O-O {[%emt 0:01:30]} 8. Qc2 {[%emt 0:01:30]} e5 {[%emt 0:01:30]} 9. cxd5 {[%emt 0:04:30]} cxd5 {[%emt 0:00:30]} 10. dxe5 {[%emt 0:00:30]} Nxe5 {[%emt 0:00:30]} 11. Nxe5 {[%emt 0:00:30]} Bxe5 {[%emt 0:00:00]} 12. Nf3 {[%emt 0:00:00]} Bd6 {[%emt 0:00:00]} 13. Be3 {[%emt 0:01:00] E01: Catalan: Early deviations.} Re8 {[%emt 0:02:30]} 14. Bd4 {[%emt 0:00:30] [#]} Ne4 $146 {[%emt 0:01:30]} ({Predecessor:} 14... Bd7 15. e3 Ne4 16. Rfd1 Rc8 17. Qb3 Qa5 18. Rdc1 b6 19. Qd1 Be6 20. a3 Qb5 {½-½ (47) Lahaye,R (2363)-Spoelman,W (2578) Netherlands 2017}) 15. Rac1 {[%emt 0:03:30] White is slightly better.} Qe7 {[%emt 0:02:30]} 16. Qb3 {[%emt 0:05:30]} Be6 {[%emt 0:04:30]} 17. Rc2 {[%emt 0:04:30]} a6 {[%emt 0:05:30]} ({Black should try} 17... b6 $11) 18. Rfc1 $14 {[%emt 0:00:30]} f6 {[%emt 0:06:30]} 19. a3 {[%emt 0:07:30]} Qd7 {[%emt 0:02:30]} 20. Ne1 {[%emt 0:02:30]} h5 {[%emt 0:07:30]} 21. h4 {[%emt 0:06:30]} Bf7 {[%emt 0:00:30]} 22. Nd3 {[%emt 0:03:30]} Re7 {[%emt 0:11:30]} 23. Qb6 {[%emt 0:09:30]} Rae8 {[%emt 0:06:30]} 24. e3 {[%emt 0:01:30]} Qf5 {[%emt 0:16:30]} 25. Nc5 {[%emt 0:07:30]} (25. Nf4 $16 {aiming for Bxe4.} Bxf4 26. exf4) 25... Bxc5 {[%emt 0:09:22]} 26. Bxc5 {[%emt 0:00:30]} Rd7 {[%emt 0:00:49]} 27. Bd4 {[%emt 0:03:30]} Kh7 {[%emt 0:01:14]} 28. Qb4 {[%emt 0:01:30]} Bg6 {[%emt 0:05:31]} 29. Qe1 {[%emt 0:00:30]} Qe6 {[%emt 0:00:35]} 30. Qd1 {[%emt 0:04:30]} Nd6 {[%emt 0:05:47]} 31. Rc7 {[%emt 0:01:30][%cal Og2d5]} Nc4 {[%emt 0:00:38] [#]} 32. Rxd7 {[%emt 0:03:30]} Qxd7 {[%emt 0:00:01] [#]} 33. Bxf6 $1 {[%emt 0:04:08] Hoping for Rxc4. A strong pair of Bishops.} Nxe3 {[%emt 0:00:52]} 34. fxe3 {[%emt 0:00:30]} gxf6 {[%emt 0:00:00]} 35. Qxd5 {[%emt 0:00:02]} Qxd5 {[%emt 0:00:34]} 36. Bxd5 {[%emt 0:00:03]} Rxe3 $16 {[%emt 0:01:04][%mdl 4096] Endgame KRB-KRB} 37. Kf2 {[%emt 0:00:30]} Rd3 {[%emt 0:00:30] Strongly threatening ...Rd2+.} 38. Bxb7 {[%emt 0:02:08]} Rb3 {[%emt 0:02:28]} 39. Bxa6 {[%emt 0:00:49] Threatens to win with Rc7+.} Rxb2+ {[%emt 0:00:02]} 40. Be2 {[%emt 0:03:18]} Bd3 $1 {[%emt 0:00:12] The position is equal.} 41. Rc7+ {[%emt 0:00:22]} Kg6 {[%emt 0:00:30]} (41... Kh6 $5 42. Re7 Ra2 $11) 42. Re7 {[%emt 0:00:30]} Ra2 {[%emt 0:00:44]} 43. a4 {[%emt 0:00:47]} Kf5 {[%emt 0:01:00]} 44. Kf3 {[%emt 0:00:33][%cal Re2d3]} Bxe2+ {[%emt 0:00:33]} 45. Rxe2 {[%emt 0:00:34]} Rxa4 {[%emt 0:00:22] Weighted Error Value: White=0.11 (very precise) /Black=0.10 (very precise)} 1/2-1/2

[Event "5th Baskent University Open 2022"]
[Site "Ankara"]
[Date "2022.07.06"]
[Round "7.16"]
[White "Primbetov, Kazbek"]
[Black "Yerden, Huseyin Eren"]
[Result "1-0"]
[ECO "A25"]
[WhiteElo "2147"]
[BlackElo "2050"]
[Annotator "TA"]
[PlyCount "73"]
[EventDate "2022.07.02"]
[EventType "swiss"]
[EventCountry "TUR"]
[SourceTitle "playchess.com"]
[Source "ChessBase"]
[SourceQuality "1"]
[TimeControl "5400+30"]

{[%evp 17,72,0,4,4,19,16,18,0,34,23,41,56,63,70,257,258,252,133,258,236,231,232,208,162,158,167,167,172,166,160,157,168,161,12,279,269,266,224,224,232,311,296,310,306,382,340,847,847,1922,1608,29989,29989,29989,29990,29990,29991,29999]} 1. c4 {[%emt 0:14:00]} e5 {[%emt 0:01:00]} 2. Nc3 {[%emt 0:00:30]} Nc6 {[%emt 0:00:30]} 3. g3 {[%emt 0:00:30]} g6 {[%emt 0:00:00]} 4. Bg2 {[%emt 0:00:30]} Bg7 {[%emt 0:00:00]} 5. e3 {[%emt 0:01:30][%cal Be2e3,Be3d4,Bd4d5][%mdl 32]} d6 {[%emt 0:00:30]} 6. Nge2 {[%emt 0:00:30]} Nge7 {[%emt 0:00:30]} 7. O-O {[%emt 0:05:30]} O-O {[%emt 0:00:30]} 8. d4 {[%emt 0:00:00]} exd4 {[%emt 0:00:30]} 9. exd4 $1 {[%emt 0:00:00] The main line 9.exd4 scores better than 9.Nxd4.} Nf5 {[%emt 0:01:30]} 10. d5 {[%emt 0:04:30] A25: English Opening vs King's Indian with ...Nc6 but without early d3.} Ne5 {[%emt 0:01:30]} 11. b3 {[%emt 0:00:30]} Re8 {[%emt 0:01:30]} 12. Bb2 {[%emt 0:09:30] The position is equal.} a6 {[%emt 0:05:30]} 13. Qd2 {[%emt 0:05:30]} Rb8 {[%emt 0:05:30]} 14. Ne4 {[%emt 0:07:30]} c5 {[%emt 0:24:30]} 15. h3 $1 {[%emt 0:04:30]} f6 $2 {[%emt 0:01:30]} (15... Qe7 $1 $14) 16. f4 $18 {[%emt 0:03:30]} Nf7 {[%emt 0:03:30] [#]} 17. Rae1 $146 {[%emt 0:10:30]} (17. g4 $18) ({Predecessor:} 17. Bc3 b5 18. cxb5 axb5 19. Qb2 b4 20. Nxf6+ Bxf6 21. Bxf6 Rxe2 22. Qxe2 Qxf6 23. Qe8+ {0-1 (32) Koskin,O-Dubinin,P Gorky 1965}) 17... b5 {[%emt 0:01:30]} (17... h5 $16 {is a better defense.}) 18. g4 {[%emt 0:10:49]} Nh4 {[%emt 0:02:30]} 19. N2g3 {[%emt 0:01:17]} Bd7 {[%emt 0:39:28]} 20. g5 {[%emt 0:04:15]} fxg5 {[%emt 0:00:30]} 21. Bxg7 {[%emt 0:00:50] White is more active.} Kxg7 {[%emt 0:00:14]} 22. fxg5 {[%emt 0:01:55]} Bf5 {[%emt 0:02:17]} 23. Qf4 $1 $36 {[%emt 0:11:44][%mdl 2048] White is really pushing.} Nxg2 {[%emt 0:00:06]} 24. Kxg2 {[%emt 0:01:35]} (24. Nxf5+ gxf5 25. Kxg2 fxe4 $16) 24... Re5 {[%emt 0:01:13]} 25. Nf6 {[%emt 0:00:50]} (25. Nxf5+ $18 gxf5 26. Ng3) 25... Qe7 $2 {[%emt 0:01:16][%mdl 8192]} (25... Nxg5 $2 26. Rxe5 (26. Nxf5+ Rxf5 27. Ne8+ Qxe8 $14) 26... Bxh3+ 27. Kg1 Bxf1 28. Ngh5+ gxh5 29. Qxg5+ Kh8 30. Re8+ Qxe8 31. Nxe8 Rxe8 32. Kxf1 $18) (25... Bd3 $1 $11 {and Black stays safe.} 26. Ng4 Bxf1+ 27. Rxf1 Rb7) 26. Nxf5+ {[%emt 0:00:30]} gxf5 {[%emt 0:00:30]} 27. Rxe5 {[%emt 0:00:30]} ({Much less strong is} 27. Qh4 h6 $18) 27... Qxe5 {[%emt 0:00:30] [#]} 28. Qh4 {[%emt 0:00:36] Dancing on a razor blade.} ({Worse is} 28. Qxf5 Qxf5 29. Rxf5 bxc4 $11) 28... Rh8 {[%emt 0:03:15] [#]} 29. Nh5+ $1 {[%emt 0:00:15]} Kf8 {[%emt 0:01:09]} 30. Ng3 {[%emt 0:00:29]} Rg8 {[%emt 0:02:02]} 31. Rxf5 {[%emt 0:00:21]} Qg7 {[%emt 0:00:12]} (31... Qe7 32. Ne4 Rg6) 32. Qe4 {[%emt 0:00:30]} h6 {[%emt 0:00:30]} 33. Qe6 {[%emt 0:00:58][%csl LRd6,LRh6] Threatening mate with Qxd6+.} hxg5 {[%emt 0:01:00]} 34. Qxd6+ {[%emt 0:00:30] White mates.} Ke8 {[%emt 0:00:00]} 35. Qe6+ {[%emt 0:00:18]} Kf8 {[%emt 0:00:00]} 36. d6 {[%emt 0:00:27][%csl Gd6][%cal Re6e7]} Rh8 {[%emt 0:01:30]} 37. Qc8# {[%emt 0:00:09] Weighted Error Value: White=0.19 (very precise) /Black=0.77} 1-0